bitfinex-derivatives/quotes_ETHF0:USTF0_20251025
["timestamp","ask_amount","ask_price","bid_price","bid_amount"]
[1761430496492,2.4004632,3951.0,3950.9,0.00035456]
[1761430496692,2.0593632,3951.0,3950.9,0.00035456]
[1761430500199,2.0593632,3951.0,3950.9,0.32805456]
[1761430500597,2.3820632,3951.0,3950.9,0.32805456]
[1761430501188,2.0593632,3951.0,3950.9,0.00035456]
[1761430503998,1.14810652,3951.0,3950.9,0.00035456]
[1761430516515,10.04410652,3951.0,3950.9,0.00035456]
[1761430518515,13.25190652,3951.0,3950.9,0.00035456]
[1761430521908,1.14810652,3951.0,3950.9,0.00035456]
[1761430522114,1.14810652,3951.0,3950.9,0.57345456]
[1761430522413,1.14810652,3951.0,3950.9,0.00035456]
[1761430522806,1.14810652,3951.0,3950.9,0.34585456]
[1761430523115,1.47040652,3951.0,3950.9,0.34585456]
[1761430523316,1.47040652,3951.0,3950.9,0.57345456]
[1761430524518,1.47040652,3951.0,3950.9,0.78555456]
[1761430524719,2.38091131,3951.0,3950.9,0.78555456]
[1761430524922,1.47040652,3951.0,3950.9,0.78555456]
[1761430529324,1.34110652,3951.0,3950.9,0.78555456]
[1761430540834,1.34017102,3951.0,3950.9,0.78555456]
[1761430545538,0.56257102,3951.0,3950.9,0.78555456]
[1761430549338,0.56257102,3951.0,3950.9,3.99335456]
[1761430550138,0.56257102,3951.0,3950.9,0.78555456]
[1761430550437,0.56257102,3951.0,3950.9,3.99335456]
[1761430551238,0.56257102,3951.0,3950.9,11.99335456]
[1761430551649,0.56257102,3951.0,3950.9,8.78555456]
[1761430557154,0.2348,3951.2,3951.1,0.7515]
[1761430557751,0.5526,3951.2,3951.1,0.7515]
[1761430558047,1.11225554,3951.2,3951.1,0.7515]
[1761430564653,0.81228321,3951.6,3951.5,0.45547]
[1761430564854,0.02,3951.7,3951.6,0.7753]
[1761430567050,0.3632,3951.7,3951.6,0.7753]
[1761430567454,0.5834,3951.7,3951.6,0.7753]
[1761430568960,0.798,3951.7,3951.6,0.7753]
[1761430573162,0.02,3951.7,3951.6,0.7753]
[1761430573367,0.5641,3952.3,3952.2,1.21159]
[1761430578965,0.7979,3952.3,3952.2,0.7562]
[1761430583870,0.7979,3952.3,3952.2,0.3175]
[1761430584073,0.3302,3951.9,3951.8,0.3175]
[1761430584282,0.7979,3951.9,3951.8,0.5394]
[1761430584484,0.7979,3951.9,3951.8,0.7562]
[1761430591485,0.7979,3951.9,3951.8,0.5394]
[1761430592983,1.35259361,3951.9,3951.8,0.5394]
[1761430662651,1.35259361,3951.9,3951.8,0.2219]
[1761430663345,1.35259361,3951.9,3951.8,0.5718]
[1761430674755,0.7979,3951.9,3951.8,0.5718]
[1761430674957,1.35323662,3951.9,3951.8,0.5718]
[1761430692469,1.35323662,3951.9,3951.8,0.7923]
[1761430703389,0.55533662,3951.9,3951.8,0.7923]
[1761430703578,0.5475,3952.7,3952.6,0.7693]
[1761430706173,0.5475,3953.0,3952.9,0.3193]
[1761430706377,0.5475,3953.0,3952.9,0.7693]
[1761430707590,0.5475,3953.0,3952.9,1.2246]
[1761430708281,0.5475,3953.0,3952.7,8.883]
[1761430708282,0.5475,3953.2,3953.1,1.22458]
[1761430709286,0.00251068,3953.3,3953.2,0.7693]
[1761430709585,0.329,3953.9,3953.8,0.7693]
[1761430709787,0.329,3953.9,3953.8,1.2245]
[1761430709981,0.5475,3953.9,3953.8,1.2245]
[1761430710787,0.54950434,3953.9,3953.8,1.22722923]
[1761430716186,0.54950434,3953.9,3953.8,4.43502923]
[1761430716389,0.54950434,3953.9,3953.8,3.97982923]
[1761430716897,0.78300434,3953.9,3953.8,3.97982923]
[1761430718997,0.78300434,3953.9,3953.8,0.77202923]
[1761430742206,0.78300434,3953.9,3953.8,9.65002923]
[1761430742797,0.00200434,3953.9,3953.8,9.65002923]
[1761430743402,0.55120434,3953.9,3953.8,9.65002923]
[1761430743809,0.55120434,3953.9,3953.8,10.55617779]
[1761430744010,0.00200434,3953.9,3953.8,9.65002923]
[1761430744411,0.5492,3954.7,3954.6,0.7988]
[1761430744712,0.5492,3954.7,3954.6,9.6768]
[1761430745305,0.55226156,3954.7,3954.6,9.6768]
[1761430748525,0.23196156,3954.7,3954.6,9.6768]
[1761430749722,0.00306156,3954.7,3954.6,9.6768]
[1761430759328,0.00306156,3954.7,3954.6,12.8846]
[1761430760129,0.5662,3955.3,3955.2,0.7929]
[1761430760321,0.5662,3955.3,3955.2,9.6689]
[1761430761121,0.56896769,3955.3,3955.2,9.6689]
[1761430762931,0.00276769,3955.3,3955.2,9.6689]
[1761430771841,0.34706769,3955.3,3955.2,9.6689]
[1761430774144,0.00276769,3955.3,3955.2,9.6689]
[1761430779049,0.00276769,3955.3,3955.2,12.8767]
[1761430779651,0.00276769,3955.3,3955.2,9.6689]
[1761430779945,0.00276769,3955.3,3955.2,12.8767]
[1761430780338,0.7696,3956.1,3956.0,0.7842]
[1761430781349,0.77240599,3956.1,3956.0,0.7842]
[1761430783747,0.00280599,3956.1,3956.0,0.9182]
[1761430783952,0.54740599,3956.1,3956.0,0.9182]
[1761430784756,0.77240599,3956.1,3956.0,0.563]
[1761430785657,0.77240599,3956.1,3956.0,0.7842]
[1761430789269,1.68195822,3956.1,3956.0,0.7842]
[1761430792363,0.77240599,3956.1,3956.0,0.7842]
[1761430797681,0.77240599,3956.1,3956.0,0.3484]
[1761430797876,2.13820935,3956.1,3956.0,0.563]
[1761430798474,2.13820935,3956.1,3956.0,0.7842]
[1761430798475,0.77240599,3956.1,3956.0,0.7842]
[1761430800483,2.13820935,3956.1,3956.0,0.7842]
[1761430800686,0.77240599,3956.1,3956.0,0.7842]
[1761430800885,2.1375982,3956.1,3956.0,0.7842]
[1761430802184,0.77240599,3956.1,3956.0,0.7842]
[1761430810084,0.77240599,3956.1,3955.6,0.7906]
[1761430810085,0.4338,3955.7,3955.6,0.7906]
[1761430810289,1.69610038,3955.7,3955.6,0.7906]
[1761430810480,0.7858,3955.7,3955.6,0.7906]
[1761430818988,0.91030038,3955.9,3955.8,0.7906]
[1761430819193,0.91030038,3955.9,3955.8,9.6636]
[1761430820582,0.91030038,3956.0,3955.9,0.7906]
[1761430820888,1.26230038,3956.0,3955.9,0.7906]
[1761430821593,0.91030038,3956.0,3955.9,0.7906]
[1761430821799,0.91310637,3956.1,3956.0,0.9269]
[1761430825499,1.26510637,3956.1,3956.0,0.9269]
[1761430825802,1.47870637,3956.1,3956.0,0.9269]
[1761430844418,0.00280599,3956.1,3956.0,0.9269]
[1761430846220,0.00280599,3956.1,3956.0,4.1347]
[1761430846711,0.00280599,3956.1,3956.0,5.04223733]
[1761430847215,0.00280599,3956.1,3956.0,4.1347]
[1761430847418,0.00280599,3956.1,3956.0,5.04223733]
[1761430849217,0.55530599,3956.1,3956.0,4.1347]
[1761430849410,0.78410599,3956.1,3956.0,0.9269]
[1761430851322,0.78410599,3956.1,3956.0,0.7906]
[1761430853017,0.46250599,3956.1,3955.8,12.2942]
[1761430853229,0.7813,3955.9,3955.8,8.873]
[1761430854312,0.3216,3955.9,3955.8,12.5144]
[1761430854517,0.5525,3955.9,3955.8,9.3066]
[1761430854721,0.7813,3955.9,3955.8,9.3066]
[1761430854926,0.7813,3955.9,3955.8,9.6364]
[1761430871529,0.5525,3955.9,3955.8,9.6364]
[1761430871733,0.34870599,3956.1,3956.0,0.9106]
[1761430872034,0.56910599,3956.1,3956.0,0.9106]
[1761430873842,0.00280599,3956.1,3956.0,0.9106]
[1761430874035,0.34870599,3956.1,3956.0,0.9106]
[1761430874240,0.56910599,3956.1,3956.0,0.9106]
[1761430887045,0.00280599,3956.1,3956.0,0.9106]
[1761430887748,0.34870599,3956.1,3956.0,0.9106]
[1761430887949,0.56910599,3956.1,3956.0,0.9106]
[1761430889955,0.80310599,3956.1,3956.0,0.7724]
[1761430893048,0.4748,3956.0,3955.9,0.5541]
[1761430893353,0.4748,3956.0,3955.9,9.4291]
[1761430893354,0.9292,3956.0,3955.9,9.4291]
[1761430893651,0.9292,3956.0,3955.9,9.6474]
[1761430897061,0.8003,3956.0,3955.9,9.6474]
[1761430897751,0.00280599,3956.1,3956.0,0.9106]
[1761430898161,0.33050599,3956.1,3956.0,0.9106]
[1761430898363,0.55360599,3956.1,3956.0,0.9106]
[1761430899058,0.77940599,3956.1,3956.0,0.9106]
[1761430900261,0.77940599,3956.1,3956.0,0.7724]
[1761430905964,0.77940599,3956.1,3956.0,0.9103]
[1761430919078,0.77940599,3956.1,3956.0,0.7724]
[1761430919283,0.9172,3956.0,3955.9,9.78253733]
[1761430919485,0.9172,3956.0,3955.9,10.34503733]
[1761430919686,0.9172,3956.0,3955.9,8.875]
[1761430921379,0.9172,3956.0,3955.5,0.90753733]
[1761430921380,0.3496,3955.6,3955.5,0.90753733]
[1761430921577,0.3496,3955.4,3955.3,10.32503733]
[1761430921782,0.8087,3955.4,3955.3,10.32503733]
[1761430922177,0.8087,3955.4,3955.3,8.877]
[1761430922682,0.3496,3955.3,3954.9,0.5405]
[1761430922881,0.9361,3955.0,3954.9,0.5405]
[1761430923279,0.9361,3955.0,3954.9,0.212]
[1761430923480,0.8087,3954.9,3954.8,8.879]
[1761430925284,0.8087,3954.9,3954.8,9.4195]
[1761430926682,0.8087,3954.9,3954.8,8.879]
[1761430927690,0.3496,3954.8,3954.6,0.5405]
[1761430927879,0.4591,3954.7,3954.6,0.5405]
[1761430928083,0.8087,3954.7,3954.6,0.5405]
[1761430930387,0.9084,3954.5,3954.4,7.42]
[1761430930987,0.9084,3954.5,3954.4,7.9822]
[1761430932184,0.9084,3954.5,3954.4,0.5622]
[1761430932390,0.326,3954.4,3954.2,0.5622]
[1761430932590,0.7684,3954.3,3954.2,0.2295]
[1761430932784,0.7684,3954.3,3954.0,10.457]
[1761430932785,0.326,3954.2,3954.0,10.457]
[1761430932989,0.7684,3954.1,3954.0,10.1243]
[1761430933292,0.7684,3954.1,3954.0,10.457]
[1761430934098,0.7684,3953.9,3953.8,0.00272923]
[1761430934399,1.31918485,3953.9,3953.8,0.00272923]
[1761430934798,0.7684,3953.2,3953.1,0.5622]
[1761430935088,0.7684,3953.2,3952.8,3.2078]
[1761430935303,0.7684,3952.9,3952.8,3.2078]
[1761430935486,0.7684,3952.9,3952.8,3.77]
[1761430935686,0.7708874,3952.9,3952.8,3.77220891]
[1761430938196,0.7708874,3952.9,3952.8,0.00220891]
[1761430939102,0.7708874,3952.9,3952.8,0.56440891]
[1761430939800,0.7708874,3952.9,3952.8,0.00220891]
[1761430940798,0.7708874,3952.9,3952.8,0.56440891]
[1761430943497,0.7708874,3952.9,3952.8,0.78850891]
[1761430950515,0.7708874,3952.9,3952.8,0.56440891]
[1761430952807,0.5484874,3952.9,3952.8,0.78850891]
[1761430953005,0.7708874,3952.9,3952.8,0.78850891]
[1761430957221,1.32201803,3952.9,3952.8,0.78850891]
[1761430964329,2.23198142,3952.9,3952.8,0.78850891]
[1761430967331,1.32201803,3952.9,3952.8,0.78850891]
[1761430969327,2.23295983,3952.9,3952.8,0.78850891]
[1761430971031,0.55361803,3952.9,3952.8,0.78850891]
[1761430971234,0.55361803,3952.9,3952.8,3.99630891]
[1761430971636,0.0024874,3952.9,3952.8,3.99630891]
[1761430972037,0.0024874,3952.9,3952.8,5.36114014]
[1761430972234,0.0024874,3952.9,3952.8,4.45162891]
[1761430975438,0.0024874,3952.9,3952.8,1.24382891]
[1761430982748,0.0024874,3952.9,3952.8,0.78850891]
[1761430985453,0.0024874,3952.9,3952.8,3.99630891]
[1761430991951,0.5525,3953.7,3953.6,0.7662]
[1761430992260,1.3306478,3953.7,3953.6,0.7662]
[1761430992651,0.7761,3953.7,3953.6,0.7662]
[1761430992846,0.77876618,3953.7,3953.6,0.7662]
[1761430996454,0.77876618,3953.7,3953.6,0.228]
[1761430996760,0.911,3953.5,3953.4,3.7616]
[1761430997160,0.911,3953.5,3953.4,0.5538]
[1761430997361,0.911,3953.5,3953.4,0.7662]
[1761431002066,0.911,3953.5,3953.4,0.5538]
[1761431003265,0.911,3953.5,3953.4,0.7662]
[1761431010674,0.911,3953.5,3953.4,0.5538]
[1761431012575,0.7761,3953.3,3953.2,0.5538]
[1761431014073,0.7761,3953.3,3953.2,0.7662]
[1761431022583,1.33024307,3953.3,3953.2,0.7662]
[1761431040890,0.77854307,3953.3,3953.2,0.7662]
[1761431042686,0.55414307,3953.3,3953.2,1.22147]
[1761431045595,0.55414307,3953.3,3953.2,4.42927]
[1761431046897,0.55414307,3953.3,3953.2,1.22147]
[1761431047097,0.55414307,3953.3,3953.2,4.42927]
[1761431051701,0.55414307,3953.3,3953.2,1.22147]
[1761431053701,0.55414307,3953.3,3953.2,4.42927]
[1761431054499,0.55414307,3953.3,3953.2,1.22147]
[1761431054900,0.55414307,3953.3,3953.2,4.42927]
[1761431055502,0.55414307,3953.3,3953.2,1.22147]
[1761431055805,0.55414307,3953.3,3953.2,4.42927]
[1761431056504,0.55414307,3953.3,3953.2,1.22147]
[1761431057300,1.10824307,3953.3,3953.2,0.7662]
[1761431057499,1.33634307,3953.3,3953.2,0.7662]
[1761431092733,0.55414307,3953.3,3953.2,0.7662]
[1761431093127,1.09604307,3953.3,3953.2,0.7662]
[1761431093433,1.32984307,3953.3,3953.2,0.7662]
[1761431093630,0.55414307,3953.3,3953.2,0.7662]
[1761431093835,1.09604307,3953.3,3953.2,0.7662]
[1761431094734,1.32984307,3953.3,3953.2,0.7662]
[1761431104443,1.09834307,3953.3,3953.2,0.7662]
[1761431104740,1.31914307,3953.3,3953.2,0.5538]
[1761431104946,1.31914307,3953.3,3953.2,0.228]
[1761431108835,0.3244,3953.2,3953.1,8.882]
[1761431109141,1.32114307,3953.2,3953.1,12.0898]
[1761431109342,1.32114307,3953.2,3953.1,8.882]
[1761431109541,1.32114307,3953.2,3953.1,9.4242]
[1761431111944,1.32467097,3953.2,3953.1,9.4242]
[1761431121548,1.32467097,3953.2,3953.1,9.6432]
[1761431122244,1.32467097,3953.2,3953.1,8.882]
[1761431122948,1.32467097,3953.2,3953.1,9.4242]
[1761431128053,1.32467097,3953.2,3953.1,9.6432]
[1761431136568,1.32683538,3953.2,3953.1,9.6432]
[1761431140666,0.55983538,3953.2,3953.1,9.6432]
[1761431155387,0.55983538,3953.2,3953.1,12.851]
[1761431156186,0.55983538,3953.2,3953.1,9.6432]
[1761431156488,0.55983538,3953.2,3953.1,12.851]
[1761431158390,0.55983538,3953.2,3953.1,9.6432]
[1761431158586,0.55983538,3953.2,3953.1,12.851]
[1761431160687,1.92782856,3953.6,3953.5,0.7938]
[1761431161190,2.25922856,3953.6,3953.5,0.7938]
[1761431166300,1.34828676,3953.6,3953.5,0.7938]
[1761431170597,1.69788625,3953.6,3953.5,0.7938]
[1761431170799,2.25897301,3953.6,3953.5,0.7938]
[1761431184011,1.47177301,3953.6,3953.5,0.9269]
[1761431184204,0.56108676,3953.6,3953.5,0.9269]
[1761431187623,0.56108676,3953.6,3953.5,4.1347]
[1761431192131,0.56108676,3953.6,3953.5,0.9269]
[1761431192330,0.56108676,3953.6,3953.5,4.1347]
[1761431194028,0.56108676,3953.6,3953.5,0.9269]
[1761431194230,0.56108676,3953.6,3953.5,4.1347]
[1761431194431,0.00266618,3953.7,3953.6,1.22492]
[1761431194725,0.55937116,3953.7,3953.6,1.22492]
[1761431194928,0.55937116,3953.7,3953.6,4.43272]
[1761431200636,0.5537,3954.3,3954.2,0.7988]
[1761431200841,0.5537,3954.3,3954.2,9.6738]
[1761431201041,0.229,3954.3,3954.2,9.6738]
[1761431201333,0.3247,3954.5,3954.2,9.6738]
[1761431201538,0.5537,3954.5,3954.4,0.7988]
[1761431201836,0.55653581,3954.5,3954.4,0.7988]
[1761431202037,0.78563581,3954.5,3954.4,0.7988]
[1761431202441,0.91693581,3954.5,3954.4,0.7988]
[1761431204344,0.78563581,3954.5,3954.4,0.7988]
[1761431212650,1.33687522,3954.5,3954.4,0.7988]
[1761431215350,0.78307522,3954.5,3954.4,0.7988]
[1761431216154,1.1078492,3954.5,3954.4,0.7988]
[1761431217554,0.7831492,3954.5,3954.4,0.7988]
[1761431218455,0.5541492,3954.5,3954.4,0.7988]
[1761431225261,0.00283581,3954.5,3954.4,0.7988]
[1761431230160,0.00283581,3954.5,3954.4,4.0066]
[1761431231059,0.90733581,3954.5,3954.4,2.36507282]
[1761431231263,0.586,3954.0,3953.9,3.2078]
[1761431231459,0.447,3953.4,3953.3,0.551]
[1761431231659,0.447,3953.4,3953.3,9.4998]
[1761431231957,0.5368,3953.4,3953.3,9.4998]
[1761431235867,0.7655,3953.4,3953.3,9.4998]
[1761431237867,0.3185,3953.6,3953.3,9.95505]
[1761431238168,0.5368,3953.6,3953.5,0.9052]
[1761431239273,0.7655,3953.6,3953.5,0.9052]
[1761431244689,0.5368,3953.6,3953.5,0.9052]
[1761431247694,0.5568,3953.6,3953.5,0.9052]
[1761431255401,0.02,3953.6,3953.5,0.9052]
[1761431255795,0.5568,3953.6,3953.5,0.9052]
[1761431260194,1.10945632,3953.6,3953.5,0.9052]
[1761431261302,0.79095632,3953.6,3953.5,0.9052]
[1761431261703,1.14145632,3953.6,3953.5,0.9052]
[1761431263505,1.37035632,3953.6,3953.5,0.9052]
[1761431272809,1.37035632,3953.6,3953.5,0.7748]
[1761431273207,0.57265632,3953.6,3953.5,0.9077]
[1761431281010,0.3505,3953.9,3953.5,0.9077]
[1761431281011,0.5772,3953.9,3953.8,0.2316]
[1761431281211,1.13210264,3953.9,3953.8,10.11779]
[1761431281418,0.55490264,3953.9,3953.8,10.11779]
[1761431282021,0.55490264,3953.9,3953.8,13.32559]
[1761431282316,0.5713,3954.4,3954.3,0.7836]
[1761431282517,0.5713,3954.4,3954.3,9.6616]
[1761431283815,0.8028,3954.4,3954.3,9.6616]
[1761431289819,0.5713,3954.4,3954.3,9.6616]
[1761431290024,0.00283581,3954.5,3954.4,1.23283]
[1761431293423,0.55513581,3954.5,3954.4,1.23283]
[1761431294619,0.00283581,3954.5,3954.4,1.23283]
[1761431301919,0.00283581,3954.5,3954.4,5.34683543]
[1761431302120,0.55513581,3954.5,3954.4,1.23283]
[1761431302523,0.55513581,3954.5,3954.4,10.10783]
[1761431303228,0.55513581,3954.5,3954.4,11.01403543]
[1761431303428,0.55513581,3954.5,3954.4,10.10783]
[1761431304226,0.55513581,3954.5,3954.4,11.01403543]
[1761431304621,0.55513581,3954.5,3954.4,10.10783]
[1761431305223,0.76723581,3954.5,3954.4,11.01403543]
[1761431305430,0.76723581,3954.5,3954.4,10.10783]
[1761431305629,0.76723581,3954.5,3954.4,9.6527]
[1761431309325,0.76723581,3954.5,3954.4,10.55890543]
[1761431309729,0.76723581,3954.5,3954.4,9.6527]
[1761431311433,0.76723581,3954.5,3954.4,10.55890543]
[1761431313136,0.00283581,3954.5,3954.4,10.55890543]
[1761431318342,0.00283581,3954.5,3954.4,9.6527]
[1761431330654,0.00283581,3954.5,3954.4,11.01463775]
[1761431337263,0.00283581,3954.5,3954.4,9.6527]
[1761431342761,1.36545057,3955.8,3955.3,1.23492]
[1761431342762,3.2078,3955.7,3955.3,1.23492]
[1761431342967,0.77867254,3955.6,3955.5,0.7799]
[1761431343167,0.99567254,3955.6,3955.5,0.7799]
[1761431343473,1.33157254,3955.6,3955.5,0.7799]
[1761431343671,1.33385213,3955.6,3955.5,0.7799]
[1761431349561,1.33385213,3955.6,3955.5,0.9106]
[1761431350476,1.11685213,3955.6,3955.5,0.9106]
[1761431352874,0.56507959,3955.6,3955.5,0.9106]
[1761431358477,0.79957959,3955.6,3955.5,0.7799]
[1761431358682,0.4679,3955.5,3955.4,8.873]
[1761431358883,0.9307,3955.5,3955.4,9.32801]
[1761431359184,0.9307,3955.5,3955.4,8.873]
[1761431359481,0.9307,3955.5,3955.4,9.4331]
[1761431364290,0.9307,3955.5,3955.4,9.6642]
[1761431365981,0.5602,3955.5,3955.4,9.6642]
[1761431369384,0.56247959,3955.6,3955.5,0.7912]
[1761431373398,0.79697959,3955.6,3955.5,0.7912]
[1761431377998,0.79697959,3955.6,3955.5,0.5601]
[1761431385608,0.79697959,3955.6,3955.5,0.779]
[1761431393506,0.00227959,3955.6,3955.5,0.9121]
[1761431393895,0.00227959,3955.6,3955.5,1.81976931]
[1761431394608,0.00227959,3955.6,3955.5,0.9121]
[1761431397214,0.00227959,3955.6,3955.5,1.81913395]
[1761431398007,0.00227959,3955.6,3955.5,0.9121]
[1761431398408,0.00227959,3955.6,3955.5,4.1199]
[1761431399017,0.00227959,3955.6,3955.5,0.9121]
[1761431399318,0.00227959,3955.6,3955.5,4.1199]
[1761431400514,0.00227959,3955.6,3955.5,0.9121]
[1761431402220,0.00227959,3955.6,3955.5,4.1199]
[1761431402411,3.2078,3956.5,3956.4,0.7716]
[1761431402612,3.2078,3956.5,3956.4,9.6416]
[1761431403007,0.5417,3956.7,3956.6,0.2127]
[1761431403310,0.54448351,3956.7,3956.6,0.77423476]
[1761431408910,0.77508351,3956.7,3956.6,0.77423476]
[1761431412620,3.98288351,3956.7,3956.6,0.77423476]
[1761431413623,3.98288351,3956.7,3956.6,8.87163476]
[1761431415413,3.98288351,3956.7,3956.6,0.00263476]
[1761431417724,0.77508351,3956.7,3956.6,0.00263476]
[1761431418223,3.98288351,3956.7,3956.6,0.00263476]
[1761431419224,0.77508351,3956.7,3956.6,0.00263476]
[1761431419521,3.98288351,3956.7,3956.6,0.00263476]
[1761431422423,0.77508351,3956.7,3956.6,0.00263476]
[1761431422728,3.98288351,3956.7,3956.6,0.00263476]
[1761431423829,11.98288351,3956.7,3956.6,0.00263476]
[1761431424023,3.98288351,3956.7,3956.6,0.00263476]
[1761431424331,5.34833408,3956.7,3956.6,0.00263476]
[1761431427425,13.34833408,3956.7,3956.6,0.00263476]
[1761431428721,10.14053408,3956.7,3956.6,0.00263476]
[1761431428923,13.34833408,3956.7,3956.6,0.00263476]
[1761431430029,10.14053408,3956.7,3956.6,0.00263476]
[1761431430331,13.34833408,3956.7,3956.6,0.00263476]
[1761431431735,10.14053408,3956.7,3956.6,0.00263476]
[1761431432028,13.34833408,3956.7,3956.6,0.00263476]
[1761431433726,0.4512,3955.5,3955.4,1.12864575]
[1761431433926,3.2078,3955.8,3955.6,1.25278]
[1761431434227,3.5517,3955.8,3955.7,0.7978]
[1761431434728,3.2078,3955.8,3955.7,0.80077735]
[1761431436622,3.5517,3955.8,3955.7,0.80077735]
[1761431436822,3.7828,3955.8,3955.7,0.80077735]
[1761431438334,4.0029,3955.8,3955.7,0.80077735]
[1761431439226,0.7951,3955.8,3955.7,0.80077735]
[1761431439428,4.0029,3955.8,3955.7,0.80077735]
[1761431443234,0.7951,3955.8,3955.7,0.80077735]
[1761431444030,3.2078,3955.9,3955.8,0.3389]
[1761431444031,3.4415,3955.9,3955.8,0.3389]
[1761431444238,3.7907,3955.9,3955.8,0.7737]
[1761431444736,4.0167,3955.9,3955.8,0.7737]
[1761431450343,0.8089,3955.9,3955.8,0.7737]
[1761431452541,0.3492,3956.0,3955.9,0.3389]
[1761431452847,0.5829,3956.0,3955.9,0.7737]
[1761431459446,4.1161798,3956.2,3955.9,0.7737]
[1761431459447,0.5829,3956.2,3956.1,0.7737]
[1761431459646,0.2337,3956.2,3956.1,0.7737]
[1761431460851,0.5742,3956.3,3956.2,0.3281]
[1761431461052,0.5742,3956.3,3956.2,0.7842]
[1761431464653,0.8055,3956.3,3956.2,0.7842]
[1761431467750,0.8055,3956.3,3956.2,0.5612]
[1761431468253,0.8055,3956.3,3956.2,0.7842]
[1761431469539,0.5742,3956.3,3956.2,0.7842]
[1761431470540,0.7885,3956.3,3956.2,0.7842]
[1761431477252,0.5742,3956.3,3956.2,0.7842]
[1761431479246,0.5607,3956.6,3956.5,0.7113]
[1761431479447,0.5607,3956.6,3956.5,10.24838]
[1761431479943,0.775,3956.6,3956.5,10.24838]
[1761431486561,0.00278351,3956.7,3956.6,0.7947]
[1761431496459,0.00278351,3956.7,3956.6,9.6617]
[1761431496460,0.56348351,3956.7,3956.6,9.6617]
[1761431496667,0.77778351,3956.7,3956.6,0.7947]
[1761431496874,0.77778351,3956.7,3956.6,9.6617]
[1761431497864,3.98558351,3956.7,3956.6,9.6617]
[1761431499570,3.98558351,3956.7,3956.6,8.867]
[1761431502263,0.77778351,3956.7,3956.6,8.867]
[1761431502856,3.98558351,3956.7,3956.6,8.867]
[1761431505972,0.4468,3956.5,3956.4,0.565]
[1761431506164,0.9053,3956.5,3956.4,0.565]
[1761431507479,0.9053,3956.5,3956.2,9.2043]
[1761431507663,3.9855,3956.3,3956.2,8.867]
[1761431508671,3.9855,3956.3,3955.9,0.565]
[1761431508672,0.9053,3956.0,3955.9,0.565]
[1761431510762,0.7777,3956.0,3955.9,0.7916]
[1761431516572,0.79296372,3956.0,3955.9,0.7916]
[1761431516874,0.24426372,3956.0,3955.9,0.7916]
[1761431517068,0.01526372,3956.0,3955.9,0.7916]
[1761431517468,0.57516372,3956.0,3955.9,0.7916]
[1761431521179,0.80856372,3956.0,3955.9,0.7916]
[1761431526380,0.94396372,3956.0,3955.9,0.7916]
[1761431528775,0.94396372,3956.0,3955.9,0.565]
[1761431528972,0.5354,3955.9,3955.8,0.45496]
[1761431529182,0.7694,3955.9,3955.8,0.5579]
[1761431529583,0.78466372,3955.9,3955.8,0.5579]
[1761431532081,0.78466372,3955.9,3955.8,0.2174]
[1761431532386,0.7694,3955.8,3955.7,8.87097735]
[1761431532575,0.7694,3955.8,3955.7,0.56087735]
[1761431532776,0.78466372,3955.8,3955.7,0.56087735]
[1761431536481,3.99246372,3955.8,3955.7,0.22037735]
[1761431536680,0.78466372,3955.8,3955.7,0.22037735]
[1761431536882,3.99246372,3955.8,3955.7,0.77737735]
[1761431538589,0.78466372,3955.8,3955.7,0.77737735]
[1761431542987,0.22826372,3955.8,3955.7,0.77737735]
[1761431543292,0.01526372,3955.8,3955.7,0.77737735]
[1761431544894,0.55066372,3955.8,3955.7,0.77737735]
[1761431550098,0.78466372,3955.8,3955.7,0.77737735]
[1761431567408,0.78466372,3955.8,3955.7,0.22037735]
[1761431567607,0.78466372,3955.8,3955.7,0.00297735]
[1761431569196,3.99246372,3955.8,3955.7,0.00297735]
[1761431572706,0.78466372,3955.8,3955.7,0.00297735]
[1761431572909,3.99246372,3955.8,3955.7,0.00297735]
[1761431573807,0.78466372,3955.8,3955.7,0.00297735]
[1761431574002,3.99246372,3955.8,3955.7,0.00297735]
[1761431575311,0.78466372,3955.8,3955.7,0.00297735]
[1761431575812,3.99246372,3955.8,3955.7,0.00297735]
[1761431576314,3.99246372,3955.8,3955.7,0.55607735]
[1761431578018,0.78466372,3955.8,3955.7,0.55607735]
[1761431579114,0.78466372,3955.8,3955.7,0.21807735]
[1761431580314,0.78466372,3955.8,3955.7,0.55387735]
[1761431580607,0.78466372,3955.8,3955.7,0.77647735]
[1761431580812,0.55066372,3955.8,3955.7,0.77647735]
[1761431583106,0.01526372,3955.8,3955.7,0.77647735]
[1761431583503,0.01526372,3955.8,3955.7,9.64947735]
[1761431595521,0.01526372,3955.8,3955.1,0.45504]
[1761431595522,0.3355,3955.4,3955.1,0.45504]
[1761431595724,0.7909,3955.1,3955.0,0.2317]
[1761431595924,0.7909,3955.1,3955.0,0.4565]
[1761431596225,0.7909,3955.1,3955.0,0.8041]
[1761431596726,0.80616372,3955.1,3955.0,0.80691439]
[1761431599633,0.80616372,3955.1,3955.0,0.00281439]
[1761431602140,4.01396372,3955.1,3955.0,0.00281439]
[1761431605743,0.80616372,3955.1,3955.0,0.00281439]
[1761431606345,4.01396372,3955.1,3955.0,0.00281439]
[1761431607343,0.80616372,3955.1,3955.0,0.00281439]
[1761431607744,4.01396372,3955.1,3955.0,0.00281439]
[1761431608035,0.80616372,3955.1,3955.0,0.00281439]
[1761431608243,4.01396372,3955.1,3955.0,0.00281439]
[1761431611049,0.80616372,3955.1,3955.0,0.00281439]
[1761431611249,4.01396372,3955.1,3955.0,0.00281439]
[1761431617448,4.01396372,3955.1,3954.0,0.2317]
[1761431617449,0.3355,3955.0,3954.0,0.2317]
[1761431617645,0.7909,3954.1,3954.0,0.8041]
[1761431617846,0.80616372,3954.1,3954.0,0.8041]
[1761431618446,0.80616372,3954.1,3954.0,0.9337618]
[1761431630857,0.80616372,3954.1,3954.0,1.84000755]
[1761431633959,0.01526372,3954.1,3954.0,1.84000755]
[1761431634159,1.2308798,3954.8,3954.7,0.7836]
[1761431634160,3.2078,3954.8,3954.7,0.7836]
[1761431634459,3.744,3955.2,3955.1,0.7836]
[1761431635662,3.9571,3955.2,3955.1,0.7836]
[1761431638065,0.7493,3955.2,3955.1,0.7836]